Cogmind - Beta 14 @@@ ROGUE MODE // 2024.12.18 @ 23:58:43 Player: Bzilon Result: Destroyed by G-50 Soldier with Heavy Laser Performance ------------- Evolutions (2) 1000 Regions Visited (4) 800 Robots Destroyed (17) 85 Value Destroyed (658) 658 Prototype IDs (0) 0 Alien Tech Used (0) 0 Bonus (160) 160 TOTAL SCORE: 2703 Bonus ------- Follower Combat Kills 178 Friendly Fire -18 Cogmind --------- Core Integrity 0/550 Matter 25/300 Energy 100/100 System Corruption 0% Temperature Cool (9) Movement Core (1350) Ox26 Location -8/Materials Parts ------- > --- POWER (2) -------- (None) > --- PROPULSION (4) --- (None) > --- UTILITY (3) ------ Huge Storage Unit > --- WEAPON (2) ------- (None) > --- INVENTORY (25) --- (None) Peak State ------------ > --- POWER ------------ Ion Engine Light Nuclear Core > --- PROPULSION ------- Aluminum Leg Aluminum Leg Aluminum Leg > --- UTILITY ---------- Huge Storage Unit Structural Scanner Targeting Computer > --- WEAPON ----------- Light Cannon Light Cannon > --- INVENTORY -------- Improved Heat Sink Medium Laser Datajack [Rating: 12] Favorites ----------- Power Ion Engine Engine Ion Engine Power Core Light Nuclear Core Propulsion Light Treads Treads Light Treads Leg Aluminum Leg Flight Unit Cesium-ion Thruster Utility Huge Storage Unit Device Structural Scanner Storage Huge Storage Unit Processor Targeting Computer Weapon Light Cannon Energy Gun EM Pulse Gun Ballistic Gun Assault Rifle Ballistic Cannon Light Cannon Special Melee Weapon Datajack Build | -11 -10 -10 -9 -8 ------- Run | Yrd Mat Min Mat Mat Slots Evolved 4 | . . . 2 2 Power 1 | . . . . 1 Propulsion 2 | . . . 1 1 Utility 1 | . . . 1 . Weapon . | . . . . . Parts Attached 22 | 6 2 2 7 5 Power 3 | 1 . . 1 1 Engine 2 | 1 . . 1 . Core 1 | . . . . 1 Reactor . | . . . . . Propulsion 6 | 2 . . 3 1 Treads 2 | 2 . . . . Leg 3 | . . . 3 . Wheel . | . . . . . Hover . | . . . . . Flight 1 | . . . . 1 Utility 5 | 1 2 . 1 1 Device 2 | . 1 . . 1 Storage 2 | 1 1 . . . Processor 1 | . . . 1 . Hackware . | . . . . . Protection . | . . . . . Artifact . | . . . . . Weapon 8 | 2 . 2 2 2 Energy Gun 3 | 1 . 1 . 1 Energy Cannon . | . . . . . Ballistic Gun 1 | 1 . . . . Ballistic Cannon 3 | . . 1 2 . Launcher . | . . . . . Special Weapon . | . . . . . Impact Weapon . | . . . . . Slashing Weapon . | . . . . . Piercing Weapon . | . . . . . Special Melee Weapon 1 | . . . . 1 Unidentified Prototypes . | . . . . . Parts Lost 12 | . . 2 3 7 Power 3 | . . 1 . 2 Propulsion 4 | . . . 1 3 Utility . | . . . . . Weapon 5 | . . 1 2 2 Highest Loss Streak 6 | . . 1 3 6 To Critical Strikes . | . . . . . Average Slot Usage (%) 91 | . 97 97 85 78 Engine 10 | . 14 12 7 7 Core 1 | . . . . 7 Treads 17 | . 28 28 6 . Leg 8 | . . . 21 22 Device 11 | . 11 14 11 8 Storage 12 | . 14 14 11 9 Processor 3 | . . . 7 8 Energy Gun 7 | . 14 11 . . Ballistic Gun 8 | . 14 14 3 . Ballistic Cannon 7 | . . 1 17 15 Peak Build Rating 12 | 6 7 7 9 12 Average Rating 7 | 3 6 6 7 10 On Entrance 5 | . 6 7 6 9 Naked Turns . | . . . . . Heaviest Build 97 | 14 90 90 92 97 Greatest Support 40 | 40 40 40 40 30 Greatest Overweight (x) 32 | . 2 2 4 32 Average Overweight (x) 2 | . 1 2 2 3 Largest Inventory Capacity 25 | 8 25 25 25 25 Average Capacity 23 | 6 21 25 25 25 Most Carried 9 | 5 4 6 9 4 Average Carried 3 | 1 2 4 4 3 Final Capacity 25 | 8 25 25 25 25 Final Carried 6 | 1 4 6 4 . Class Distribution -------------------- 71% | Mutant 28% | Scavenger-Mutant Dominant Class ---------------- Mutant | -10/Materials Mutant | -10/Mines Scavenger-Mutant | -9/Materials Scavenger-Mutant | -8/Materials Resources | -11 -10 -10 -9 -8 ----------- Run | Yrd Mat Min Mat Mat Matter Collected 566 | 124 55 212 130 45 Remotely . | . . . . . Salvage Created 623 | . 81 201 206 135 Parts 38 | . 6 8 19 5 Haulers Intercepted . | . . . . . Recyclers Shooed . | . . . . . Parts Field Recycled . | . . . . . Retrieved Matter . | . . . . . Parts Self-Destructed . | . . . . . Prevented . | . . . . . Kills | -11 -10 -10 -9 -8 ------- Run | Yrd Mat Min Mat Mat Combat Hostiles Destroyed 16 | . 2 4 6 4 Guns 6 | . 2 3 1 . Cannons 10 | . . 1 5 4 Classes Destroyed 3 | . 1 1 1 . Watcher 1 | . . . 1 . Grunt 13 | . 2 2 6 3 Sentry 3 | . . 2 . 1 Best Kill Streak 3 | . 1 2 3 2 Combat Bots Only 3 | . 1 2 3 2 Max Kills in Single Turn 2 | . 1 1 2 1 Gunslinging . | . . . . . Exploded . | . . . . . Melee . | . . . . . Uniques/NPCs Destroyed . | . . . . . Combat | -11 -10 -10 -9 -8 -------- Run | Yrd Mat Min Mat Mat Hostile Shots Fired 222 | . 5 36 66 115 Missed 73 | . 2 9 21 41 Damage Taken 2155 | . 34 409 531 1181 Core 769 | . . 77 142 550 Absorbed by Shields . | . . . . . Core Remaining (%) 77 | 100 . 69 64 . Volleys Fired 83 | . 5 21 25 32 Largest 2 | . 2 2 2 2 Hottest 70 | . 60 70 70 70 Shots Fired 148 | . 10 33 49 56 Gun 62 | . 10 31 13 8 Cannon 86 | . . 2 36 48 Launcher . | . . . . . Special . | . . . . . Kinetic 125 | . 5 23 49 48 Thermal 15 | . . 7 . 8 Explosive . | . . . . . Electromagnetic 8 | . 5 3 . . Robot Hit Streak 9 | . 6 9 9 8 Robot Miss Streak 3 | . 2 2 2 3 Penetration Max . | . . . . . Secondary Targets . | . . . . . Shots Hit Robots 91 | . 6 22 29 34 Core Hits 35 | . 3 8 9 15 Critical Kills . | . . . . . Critical Parts Destroyed . | . . . . . Critical Strikes 3 | . . 1 1 1 Burn 2 | . . 1 . 1 Blast 1 | . . . 1 . Melee Attacks 1 | . . . . 1 Impact . | . . . . . Slashing . | . . . . . Piercing . | . . . . . Sneak Attacks . | . . . . . Combat Hostiles . | . . . . . Follow-up Attacks . | . . . . . Damage Inflicted 1476 | . 81 296 517 582 Guns 537 | . 81 258 111 87 Cannons 939 | . . 38 406 495 Explosions . | . . . . . Melee . | . . . . . Ramming . | . . . . . Kinetic 1278 | . 28 238 517 495 Thermal 111 | . . 24 . 87 Explosive . | . . . . . Electromagnetic 87 | . 53 34 . . Impact . | . . . . . Slashing . | . . . . . Piercing . | . . . . . Highest Corruption 1 | . 1 1 . . Average Corruption 1 | . 1 1 . . Corruption Purged . | . . . . . Corruption Blocked . | . . . . . Effects 10 | . 4 6 . . Message Errors 3 | . 2 1 . . Matter Fused 3 | . 1 2 . . Energy Discharges 3 | . 1 2 . . Parts Fused 1 | . . 1 . . Overload Shots . | . . . . . Overflow Damage 2 | . . . 2 . Projectiles 2 | . . . 2 . Explosions . | . . . . . Melee . | . . . . . Knockbacks 13 | . . . 7 6 Impact . | . . . . . Kinetic 12 | . . . 7 5 Secondary 1 | . . . . 1 Self-Inflicted Damage . | . . . . . Shots . | . . . . . Rammed 1 | . . . . 1 Targets Rammed 1 | . . . . 1 Kicked . | . . . . . Crushed . | . . . . . Highest Temperature 273 | . . 88 48 273 Average Temperature 59 | . . 42 24 80 Received Heat Transfer 1281 | . 18 204 294 765 Effects 1 | . . . . 1 Energy Bleed 1 | . . . . 1 Siege Activations . | . . . . . Robots Corrupted . | . . . . . Combat Hostiles . | . . . . . Parts Fried . | . . . . . Impact Corruptions . | . . . . . Robots Melted . | . . . . . Combat Hostiles . | . . . . . Parts Melted . | . . . . . Heat Transferred 481 | . . 148 . 333 Parts Sabotaged . | . . . . . Parts Stolen . | . . . . . Parts Stripped . | . . . . . Power Chain Reactions . | . . . . . Alert | -11 -10 -10 -9 -8 ------- Run | Yrd Mat Min Mat Mat Peak Influence 140 | . 91 102 140 116 Initial 30 | . . . . 30 Average 36 | . 25 7 100 44 Maximum Alert Level . | . . . . . Low Security (%) 100 | 100 100 100 100 100 Level 1 . | . . . . . Level 2 . | . . . . . Level 3 . | . . . . . Level 4 . | . . . . . Level 5 . | . . . . . High Security . | . . . . . Max Security . | . . . . . Squads Dispatched 7 | . 2 . 3 2 Investigation 5 | . 2 . 2 1 Extermination . | . . . . . Reinforcement 2 | . . . 1 1 Assault . | . . . . . Garrison . | . . . . . Intercept . | . . . . . Searches Triggered . | . . . . . Construction Impeded . | . . . . . Haulers Reinforced . | . . . . . Active Scanning Responses . | . . . . . Cargo Convoy Interrupts . | . . . . . Stealth | -11 -10 -10 -9 -8 --------- Run | Yrd Mat Min Mat Mat Distress Signals 1 | . . . . 1 Communications Jammed . | . . . . . Distress Signals . | . . . . . Times Spotted 43 | . 5 4 12 22 Peak Tracking Total 6 | . 2 2 4 6 Tactical Retreats . | . . . . . Traps | -11 -10 -10 -9 -8 ------- Run | Yrd Mat Min Mat Mat Traps Triggered 6 | . 1 . 1 4 Indirectly . | . . . . . Trap Hack Attempts . | . . . . . Triggered . | . . . . . Disarmed . | . . . . . Reprogrammed . | . . . . . Reused . | . . . . . Traps Extracted . | . . . . . Installed . | . . . . . Triggered . | . . . . . Machines | -11 -10 -10 -9 -8 ---------- Run | Yrd Mat Min Mat Mat Machines Disabled 1 | . . 1 . . Max in Single Turn 1 | . . 1 . . Machines Repaired . | . . . . . Machines Dismantled . | . . . . . Machines Sabotaged . | . . . . . Overloaded Fab Kills . | . . . . . Hacking | -11 -10 -10 -9 -8 --------- Run | Yrd Mat Min Mat Mat Machines Accessed 2 | . 2 . . . Terminals 1 | . 1 . . . Fabricators . | . . . . . Repair Stations . | . . . . . Recycling Units 1 | . 1 . . . Scanalyzers . | . . . . . Garrison Access . | . . . . . Total Hacks 4 | . 4 . . . Successful 3 | . 3 . . . Failed 1 | . 1 . . . Catastrophic . | . . . . . Database Lockouts . | . . . . . Manual . | . . . . . Terminals 1 | . 1 . . . Fabricators . | . . . . . Repair Stations . | . . . . . Recycling Units 3 | . 3 . . . Scanalyzers . | . . . . . Garrison Access . | . . . . . Terminal Hacks 1 | . 1 . . . Record 1 | . 1 . . . Fabricator Hacks . | . . . . . Repair Station Hacks . | . . . . . Recycling Unit Hacks 2 | . 2 . . . Recycle Component 1 | . 1 . . . Process 1 | . 1 . . . Scanalyzer . | . . . . . Garrison Access Hacks . | . . . . . Unauthorized Hacks . | . . . . . Terminals . | . . . . . Fabricators . | . . . . . Repair Stations . | . . . . . Recycling Units . | . . . . . Scanalyzers . | . . . . . Garrison Access . | . . . . . Data Cores Recovered . | . . . . . Used . | . . . . . Hacking Detections 1 | . 1 . . . Full Trace Events 1 | . 1 . . . Feedback Events 1 | . 1 . . . Corruption 1 | . 1 . . . Feedback Blocked . | . . . . . Robot Schematics Acquired . | . . . . . Robots Built . | . . . . . Authchips . | . . . . . Time . | . . . . . Total Robot Build Rating . | . . . . . Part Schematics Acquired . | . . . . . Parts Built . | . . . . . Authchips . | . . . . . Time . | . . . . . Total Part Build Rating . | . . . . . Parts Repaired . | . . . . . Time . | . . . . . Parts Recycled 1 | . 1 . . . Recycled Matter 165 | . 165 . . . Retrieved Matter . | . . . . . Retrieved Components . | . . . . . Parts Scanalyzed . | . . . . . Part Schematics Acquired . | . . . . . Parts Damaged . | . . . . . Bothacking | -11 -10 -10 -9 -8 ------------ Run | Yrd Mat Min Mat Mat Used RIF Installer . | . . . . . Robots Hacked . | . . . . . Non-combat . | . . . . . Combat . | . . . . . Robot Hacks Applied . | . . . . . Relay Couplers Released . | . . . . . Fabnet Peak Effective % . | . . . . . Robots Rewired . | . . . . . Allies Hacked . | . . . . . Hacks Repelled . | . . . . . Allies | -11 -10 -10 -9 -8 -------- Run | Yrd Mat Min Mat Mat Total Allies 2 | . . 2 . . Largest Group 2 | . . 2 2 1 Highest-Rated Group 42 | . . 42 42 11 Highest-Rated Ally 31 | . . 31 31 11 Total Orders . | . . . . . Ally Attacks 18 | . . 5 13 . Total Damage 274 | . . 62 212 . Kills 6 | . . 2 4 . Allies Corrupted . | . . . . . Allies Melted . | . . . . . Intel | -11 -10 -10 -9 -8 ------- Run | Yrd Mat Min Mat Mat Robot Analysis Total . | . . . . . Derelict Logs Recovered . | . . . . . Drone Launches . | . . . . . Drone Recoveries . | . . . . . Exploration | -11 -10 -10 -9 -8 ------------- Run | Yrd Mat Min Mat Mat Turns Passed 2603 | 63 642 879 480 539 Spaces Moved 766 | 45 229 257 118 117 Core 26 | 23 . . . 3 Treads 539 | 22 229 257 31 . Legs 200 | . . . 87 113 Wheels . | . . . . . Hover . | . . . . . Flight 1 | . . . . 1 Fastest Speed 50 | 50 160 320 320 330 Average Speed 302 | 103 270 320 336 370 Slowest Speed 1650 | 160 320 320 480 1650 Overloaded Moves . | . . . . . Propulsion Burnouts . | . . . . . Robots Hopped . | . . . . . Cave-ins Triggered . | . . . . . Exploration Rate (%) 23 | 4 35 44 18 16 Regions Visited 4 Branch Regions 1 Pre-discovered Areas . | . . . . . Known Exits Taken . | . . . . . Unknown Exits Taken 4 | 1 1 1 1 . Scrap Searched 1 | . . 1 . . Spaces Dug . | . . . . . Terrain Destroyed . | . . . . . Melee . | . . . . . Projectile . | . . . . . AOE . | . . . . . Terrain Rammed . | . . . . . Walls Destroyed . | . . . . . Machines Disabled . | . . . . . Actions | -11 -10 -10 -9 -8 --------- Run | Yrd Mat Min Mat Mat Total 898 | 60 244 282 155 157 Wait 7 | 5 2 . . . Move 762 | 44 228 256 117 117 Hop . | . . . . . Pick Up 20 | 5 6 3 5 1 Fast Attach 2 | 2 . . . . Attach 18 | 4 1 1 7 5 Detach . | . . . . . Swap 2 | . 1 1 . . Drop 2 | . 1 . 1 . Fire 83 | . 5 21 25 32 Melee 1 | . . . . 1 Ram 1 | . . . . 1 Kick . | . . . . . Crush . | . . . . . Escape Stasis . | . . . . . Rewire . | . . . . . Trap . | . . . . . Miscellaneous . | . . . . . Route ------- -11/Scrapyard -10/Materials -10/Mines -9/Materials -8/Materials History --------- Turn | Location | Event 11 | -11/Scrapyard | Discovered new exit (range 14) 64 | -11/Scrapyard | Entered Materials 303 | -10/Materials | Build established: Mutant 678 | -10/Materials | Discovered new exit (range 8) 706 | -10/Materials | Entered Mines 1550 | -10/Mines | Discovered new exit (range 10) 1585 | -10/Mines | Entered Materials 1585 | -9/Materials | Accompanied by 2 allies 1585 | -9/Materials | Evolved 2 slots: Propulsion x1, Utility x1 1590 | -9/Materials | Led the pair of lost Derelicts to an unsafe place 1760 | -9/Materials | Lost 3 parts (1n2w) 2016 | -9/Materials | Discovered new exit (range 15) 2053 | -9/Materials | Build established: Scavenger-Mutant 2065 | -9/Materials | Entered another Materials area 2065 | -8/Materials | Accompanied by 1 ally 2065 | -8/Materials | Evolved 2 slots: Power x1, Propulsion x1 2561 | -8/Materials | Lost 6 parts (2p2n2w) 2567 | -8/Materials | Core integrity fell below 50% 2599 | -8/Materials | Core integrity fell below 20% 2604 | -8/Materials | Destroyed by G-50 Soldier with Heavy Laser Last Messages --------------- Critical hit (Burn: +37). K-01 Serf destroyed. K-01 Serf collects debris. G-47 Trooper suffers critical hit (Burn). K-01 Serf collects debris. G-47 Trooper overheating. Triggered Blade Trap. Massive razor-sharp blades shoot up from within the floor. Med. Laser severed. Imp. Heat Sink severed. G-47 Trooper heat damages Aluminum Leg. M-13 Machinist repairs G-47 Trooper. M-13 Machinist repairs Aluminum Leg. R-06 Scavenger collects Datajack. G-47 Trooper heat short circuits Aluminum Leg. U-05 Engineer lays Concrete. Slammed into K-01 Serf. Acquired 16 matter. Critical hit (Burn: +37). Map ----- +----------------------------------------------------+ | ???????## ##??????????????????????????????? | | ???????## ##??????????????????????????????? | | ######### ###############?????????????????? | | ######### ###############?????????????????? | | + # # ##?????????????????? | | ######### # # ##?????????????????? | | ######### # # ##?????????????????? | | ##?????## / + ##?????????????????? | | ##?????## # # ##?????????????????? | | ##?????########### # ##?????????????????? | | ##?????########### # ##?????????????????? | | ##??????##!!!!#### # ##?????????????????? | | ##??????# !### # ! ##?????????????????? | | ##??????? ### ###########?????????????????? | | ##???????## ### ###########?????????????????? | | ##???????## ##??????????????????????????? | | ##???????## ##??????????????????????????? | | ########### ##??????????????????????????? | | ########### #########??????????????????????????? | | #########????########??????????????? | | #####################??????????????? | | % ############## ### ????????????? | | * ### ????????????? | | % a %%% / ????????????? | | k %% ![u ####????????????? | | ################+##### !@## ##??????????????? | | ############### ##=%*#########??????????????? | | ###??????????## ##!gg##?######??????????????? | | ?????????????## ##=g!##?????????????????????? | | ?????????????##!]! ##*% ##?????????????????????? | | ?????????????##!]! ## # ?????????????????????? | | ?????????????##!! ## # ?????????????????????? | | ?????????????########## u # ?????????????????????? | | ?????????????########## m# ?????????????????????? | | ?????????????????????## # ?????????????????????? | | ?????????????????????##k # ?????????????????????? | | ?????????????????????## + ?????????????????????? | | ?????????????????????## gk# ?????????????????????? | | ?????????????????????##u # ?????????????????????? | | ?????????????????????## ##?????????????????????? | | ?????????????????????# #?????????????????????? | | ??????????????????????? ???????????????????????? | | ??????????????????????? ???????????????????????? | | ?????????????????????????????????????????????????? | | ?????????????????????????????????????????????????? | | ?????????????????????????????????????????????????? | | ?????????????????????????????????????????????????? | | ?????????????????????????????????????????????????? | | ?????????????????????????????????????????????????? | | ?????????????????????????????????????????????????? | +----------------------------------------------------+ Best States ------------- Heat Dissipation 45 Energy Generation 19 Energy Capacity 310 Matter Stores 296 Matter Capacity 300 Sight Range 16 Terrain Scan Density 10 Evasion (%) 50 Targeting Accuracy 5 Recoil Reduction 2 Item Schematics ----------------- None Robot Schematics ------------------ None Fabricated ------------ Nothing Alien Tech Used ----------------- None Achievements -------------- None Challenges ------------ None Game ------ Seed SapperStormCutter Manual? 0 Play Time 00:19:57 Cumulative 10.3 hours Start 2024.12.18 @ 23:33:08 End 2024.12.18 @ 23:58:43 Sessions 1 Manual Loads 0 Difficulty Rogue Special Mode None Game No. 23 Rogue 23 Adventurer 0 Explorer 0 Win Type - Total 0 Types 0/0/0/0/0/0/0/0/0 Lore% 9 Gallery% 13 Achievement% 12 Wizard Run 0 Options --------- Layout 1 ASCII 0 Keyboard 0 Movement Mouse Keybinds 0 Fullscreen 2 Font 24/Crisp Map View 50x35 Zoom Use 7% Tactical HUD 0 Map Filters NONE Filters NONE Steam 1 RUN: 913fa26b-51d6-4b2b-92b6-f4dce054ca11